bitfinex-derivatives/quotes_BTCF0:USTF0_20250402
["timestamp","ask_amount","ask_price","bid_price","bid_amount"]
[1743604340564,0.128,85852.0,85840.0,0.09284]
[1743604340867,0.128,85852.0,85840.0,0.61344]
[1743604341170,0.3608,85847.0,85841.0,0.2349]
[1743604341363,0.00072,85842.0,85841.0,0.4555]
[1743604341863,0.00072,85842.0,85841.0,0.3655]
[1743604342063,0.00072,85842.0,85841.0,0.5655]
[1743604342260,0.00072,85842.0,85841.0,0.47540579]
[1743604342566,8e-05,85842.0,85841.0,0.73540579]
[1743604342769,8e-05,85842.0,85841.0,0.84540579]
[1743604343676,8e-05,85867.0,85841.0,1.17540579]
[1743604343978,0.4183,85899.0,85841.0,1.17540579]
[1743604343979,8e-05,85893.0,85865.0,0.7216]
[1743604344164,0.1273,85899.0,85880.0,0.7216]
[1743604344368,0.12826001,85899.0,85889.0,0.3608]
[1743604344674,0.12826001,85899.0,85890.0,0.116]
[1743604344883,0.3608,85921.0,85898.0,0.3608]
[1743604345177,0.00132,85900.0,85899.0,0.2088]
[1743604345369,0.2507,85914.0,85899.0,0.73004]
[1743604345674,0.25194001,85914.0,85906.0,0.3608]
[1743604345873,0.25194001,85914.0,85906.0,0.38204]
[1743604346173,0.3608,85910.0,85906.0,0.02124]
[1743604346372,0.2406,85909.0,85906.0,0.02]
[1743604346578,0.37423351,85909.0,85898.0,0.00017463]
[1743604346788,0.37423351,85909.0,85898.0,0.22017463]
[1743604347075,0.24124,85909.0,85898.0,0.22141463]
[1743604347575,0.24124,85909.0,85898.0,0.12141463]
[1743604347576,0.3608,85903.0,85898.0,0.12141463]
[1743604347773,0.2316,85902.0,85898.0,0.12141463]
[1743604347972,0.23296,85902.0,85898.0,0.12141463]
[1743604348169,0.23296,85902.0,85898.0,0.12017463]
[1743604348372,0.23296,85902.0,85898.0,0.12141463]
[1743604348572,0.23296,85902.0,85899.0,0.2508]
[1743604348880,0.23296,85902.0,85899.0,0.26204]
[1743604349075,0.11856,85902.0,85899.0,0.26204]
[1743604349674,0.121,85901.0,85899.0,0.26204]
[1743604349981,0.00136,85901.0,85899.0,0.26204]
[1743604350781,0.1123,85909.0,85899.0,0.27204]
[1743604351179,0.1123,85909.0,85905.0,0.3608]
[1743604351375,0.1123,85909.0,85906.0,0.2354]
[1743604351575,0.1123,85909.0,85906.0,0.24664]
[1743604351976,0.1123,85909.0,85906.0,0.25664]
[1743604352480,0.1123,85909.0,85906.0,0.01124]
[1743604352684,0.116,85908.0,85907.0,0.1165]
[1743604352874,0.116,85908.0,85907.0,0.12774]
[1743604353688,0.116,85908.0,85907.0,0.01124]
[1743604353981,0.1123,85909.0,85907.0,0.01]
[1743604354182,0.1123,85909.0,85907.0,0.01128]
[1743604354478,0.1123,85909.0,85908.0,0.2348]
[1743604354683,0.1123,85909.0,85908.0,0.24604]
[1743604355075,0.11354001,85909.0,85908.0,0.24604]
[1743604356174,0.11354001,85909.0,85908.0,0.12774]
[1743604356372,0.2466542,85909.0,85898.0,0.00017463]
[1743604356588,0.3608,85900.0,85898.0,0.01145463]
[1743604356881,0.2329,85899.0,85898.0,0.00017463]
[1743604357079,0.3766142,85899.0,85898.0,0.00017463]
[1743604357275,0.23350001,85899.0,85898.0,0.00017463]
[1743604357471,0.23350001,85899.0,85898.0,0.01017463]
[1743604358096,0.23350001,85899.0,85898.0,0.01141463]
[1743604358288,0.23350001,85899.0,85898.0,0.01017463]
[1743604360680,0.36524309,85899.0,85871.0,0.3608]
[1743604360877,0.3608,85884.0,85872.0,0.2349]
[1743604361073,0.2346,85883.0,85872.0,0.13132]
[1743604361381,0.3608,85876.0,85872.0,0.01]
[1743604361685,0.1151,85875.0,85872.0,0.01]
[1743604361888,0.36647984,85875.0,85868.0,0.01026179]
[1743604362188,0.3608,85869.0,85856.0,0.01036355]
[1743604362483,0.3608,85858.0,85850.0,0.00332]
[1743604362684,0.3608,85851.0,85850.0,0.00456]
[1743604362989,0.82970001,85851.0,85843.0,0.2079808]
[1743604363174,0.3608,85844.0,85843.0,0.2092208]
[1743604363379,0.41204001,85844.0,85843.0,0.00124]
[1743604363577,0.54692623,85844.0,85839.0,0.2079808]
[1743604363881,0.54692623,85844.0,85829.0,0.34510413]
[1743604363882,0.3608,85840.0,85829.0,0.34510413]
[1743604364084,0.3608,85830.0,85829.0,0.34570413]
[1743604364297,0.41140001,85830.0,85829.0,0.34630413]
[1743604364480,0.53347358,85830.0,85822.0,0.41532528]
[1743604364681,0.53347358,85830.0,85822.0,0.41592528]
[1743604364682,0.3608,85823.0,85822.0,0.41592528]
[1743604364878,0.37152,85823.0,85822.0,0.41592528]
[1743604365083,0.49359357,85823.0,85822.0,0.41592528]
[1743604365283,0.49359357,85823.0,85814.0,0.00017474]
[1743604365484,0.3608,85815.0,85814.0,0.00077474]
[1743604365684,0.36172,85815.0,85814.0,0.00077474]
[1743604365890,0.49657189,85815.0,85814.0,0.00077474]
[1743604366884,0.36172,85815.0,85814.0,0.00077474]
[1743604368093,0.36172,85815.0,85814.0,0.00017474]
[1743604368593,0.36172,85815.0,85805.0,0.01014677]
[1743604368788,0.3608,85807.0,85805.0,0.03092]
[1743604369091,0.3608,85807.0,85805.0,0.02092]
[1743604369092,0.36172,85807.0,85805.0,0.02092]
[1743604369294,0.25047892,85806.0,85800.0,0.1]
[1743604369489,0.3608,85805.0,85800.0,0.1106]
[1743604369693,0.37172,85805.0,85800.0,0.1]
[1743604369904,0.12807892,85804.0,85800.0,0.1]
[1743604370091,0.12903893,85804.0,85801.0,0.2384]
[1743604370396,0.00096001,85804.0,85801.0,0.24932]
[1743604370594,0.36097474,85811.0,85801.0,0.25932]
[1743604370791,0.36189474,85811.0,85801.0,0.25932]
[1743604371000,0.00109474,85811.0,85801.0,0.25932]
[1743604371218,0.00109474,85811.0,85801.0,0.26932]
[1743604372226,0.00109474,85811.0,85802.0,0.09268]
[1743604372420,0.00109474,85811.0,85802.0,0.17364]
[1743604372792,0.00109474,85811.0,85802.0,0.16364]
[1743604372997,0.1142,85810.0,85802.0,0.16364]
[1743604373198,0.3608,85808.0,85802.0,0.16364]
[1743604373492,0.1191,85807.0,85802.0,0.16364]
[1743604373692,0.12002,85807.0,85802.0,0.07096]
[1743604373892,0.3608,85806.0,85802.0,0.18916]
[1743604374089,0.3608,85806.0,85801.0,0.1155]
[1743604374090,0.09268,85805.0,85773.0,0.3608]
[1743604374289,0.09268,85805.0,85775.0,0.00068]
[1743604374290,0.3608,85786.0,85775.0,0.00068]
[1743604374488,0.3608,85779.0,85775.0,0.00068]
[1743604374688,0.3608,85779.0,85774.0,0.2348]
[1743604374993,0.12661818,85778.0,85774.0,0.1182]
[1743604375194,0.25571818,85778.0,85774.0,0.1182]
[1743604375399,0.25571818,85778.0,85767.0,0.00017484]
[1743604375601,0.3608,85769.0,85767.0,0.01017484]
[1743604375897,0.1191,85778.0,85768.0,0.1166]
[1743604376104,0.00017484,85785.0,85768.0,0.77262591]
[1743604376294,0.1191,85784.0,85768.0,0.6066]
[1743604377293,0.13319232,85783.0,85768.0,0.6066]
[1743604378100,0.1121,85782.0,85768.0,0.6066]
[1743604378297,0.3608,85779.0,85768.0,0.5966]
[1743604378599,0.1121,85778.0,85769.0,0.1152]
[1743604378796,0.3608,85770.0,85769.0,0.01]
[1743604379499,0.36200001,85770.0,85769.0,0.1258]
[1743604379706,0.36200001,85770.0,85769.0,0.245]
[1743604379904,0.36200001,85770.0,85769.0,0.0006]
[1743604380202,0.36200001,85770.0,85767.0,0.00017484]
[1743604380506,0.1135,85769.0,85767.0,0.01157484]
[1743604380799,0.11494,85769.0,85767.0,0.01157484]
[1743604381387,0.11494,85769.0,85737.0,0.36093672]
[1743604381388,0.12242601,85768.0,85737.0,0.00013672]
[1743604381599,0.3608,85746.0,85738.0,0.1184]
[1743604381795,0.36260001,85746.0,85739.0,0.1177]
[1743604381998,0.36260001,85746.0,85739.0,0.4885]
[1743604382200,0.36260001,85746.0,85739.0,0.13804671]
[1743604382403,0.13114194,85745.0,85739.0,0.01]
[1743604382701,0.25038194,85745.0,85739.0,0.01]
[1743604382900,0.3608,85743.0,85734.0,0.00011741]
[1743604383099,0.3608,85735.0,85734.0,0.00011741]
[1743604383301,0.36268001,85735.0,85734.0,0.00011741]
[1743604383802,0.00188001,85735.0,85734.0,0.01011741]
[1743604384007,0.1174,85742.0,85734.0,0.01011741]
[1743604384195,0.11920001,85742.0,85735.0,0.2425]
[1743604384400,0.12961759,85741.0,85735.0,0.4725]
[1743604384803,0.1174,85753.0,85735.0,0.4725]
[1743604384996,0.00205495,85751.0,85740.0,0.17602591]
[1743604385206,0.00205495,85751.0,85741.0,0.2425]
[1743604385400,0.00205495,85751.0,85741.0,0.7625]
[1743604385704,0.00205495,85751.0,85742.0,0.1217]
[1743604385893,0.00205495,85751.0,85742.0,0.3617]
[1743604386092,0.3608,85745.0,85742.0,0.3517]
[1743604386294,0.3608,85745.0,85743.0,0.2315]
[1743604386499,0.36260001,85745.0,85743.0,0.3615]
[1743604386700,0.36260001,85745.0,85743.0,0.3215]
[1743604386895,0.36260001,85745.0,85734.0,0.09279741]
[1743604386896,0.36260001,85745.0,85734.0,0.00011741]
[1743604387100,0.2463785,85744.0,85735.0,0.119]
[1743604387425,0.24817851,85744.0,85735.0,0.129]
[1743604388117,0.1158,85743.0,85735.0,0.129]
[1743604388307,0.12760001,85743.0,85735.0,0.01]
[1743604388601,0.24608334,85742.0,85735.0,0.01]
[1743604388807,0.13738334,85742.0,85736.0,0.1182]
[1743604389107,0.25608334,85742.0,85737.0,0.1125]
[1743604389302,0.3608,85738.0,85737.0,0.1225]
[1743604390301,0.3608,85738.0,85734.0,0.00011741]
[1743604390302,0.49203407,85738.0,85734.0,0.00011741]
[1743604390498,0.2334,85737.0,85734.0,0.01011741]
[1743604391009,0.13123407,85736.0,85734.0,0.01011741]
[1743604391398,0.2334,85735.0,85734.0,0.00011741]
[1743604391601,0.2434,85735.0,85722.0,0.1207]
[1743604391802,0.3608,85726.0,85722.0,0.1307]
[1743604392001,0.116,85725.0,85722.0,0.1307]
[1743604392604,0.1156,85724.0,85722.0,0.1307]
[1743604392919,0.3608,85726.0,85722.0,0.1307]
[1743604393697,0.36260001,85726.0,85722.0,0.1307]
[1743604394506,0.00180001,85726.0,85722.0,0.1207]
[1743604394707,0.00017494,85732.0,85722.0,0.2307]
[1743604394914,0.3608,85727.0,85722.0,0.2307]
[1743604395114,0.3608,85730.0,85722.0,0.2307]
[1743604395412,0.3608,85730.0,85722.0,0.1307]
[1743604395413,0.00184,85727.0,85722.0,0.1307]
[1743604395627,0.36247822,85729.0,85722.0,0.1307]
[1743604395911,0.36247822,85726.0,85722.0,0.01]
[1743604396211,0.3608,85723.0,85722.0,0.01]
[1743604398506,0.1224,85726.0,85722.0,0.01]
[1743604398813,0.00017494,85732.0,85723.0,0.114]
[1743604399015,0.3608,85728.0,85723.0,0.124]
[1743604399608,0.2303,85727.0,85723.0,0.124]
[1743604400004,0.3608,85726.0,85710.0,0.02]
[1743604400210,0.3608,85726.0,85715.0,8e-05]
[1743604400211,0.3608,85716.0,85715.0,8e-05]
[1743604400415,0.3608,85716.0,85711.0,0.00024]
[1743604400416,0.3608,85716.0,85693.0,0.3608]
[1743604400623,0.3608,85706.0,85700.0,0.11]
[1743604400912,0.2279,85705.0,85700.0,0.11]
[1743604401127,0.36463082,85705.0,85700.0,0.11]
[1743604402008,0.00180001,85705.0,85701.0,0.1182]
[1743604402204,0.00180001,85705.0,85701.0,0.242]
[1743604403220,0.1163,85704.0,85701.0,0.242]
[1743604403412,0.24922241,85704.0,85701.0,0.01]
[1743604403618,0.1122,85703.0,85701.0,0.01]
[1743604403817,0.11400001,85703.0,85701.0,0.01]
[1743604404113,0.2485224,85702.0,85701.0,0.01]
[1743604404320,0.25032241,85702.0,85701.0,0.01]
[1743604404517,0.25032241,85702.0,85701.0,0.1267]
[1743604404729,0.11920001,85702.0,85701.0,0.1167]
[1743604405016,0.11920001,85702.0,85701.0,0.1267]
[1743604405017,0.00180001,85702.0,85701.0,0.1267]
[1743604406914,0.12518241,85702.0,85701.0,0.01]
[1743604407523,0.00180001,85702.0,85701.0,0.01]
[1743604407718,0.25164137,85702.0,85701.0,0.01]
[1743604408022,0.36644137,85702.0,85700.0,0.1]
[1743604408219,0.36644137,85702.0,85700.0,0.06678727]
[1743604408414,0.51098,85701.0,85681.0,0.00016]
[1743604408617,0.7216,85683.0,85675.0,8e-05]
[1743604408814,0.77340001,85683.0,85675.0,8e-05]
[1743604409119,0.90420703,85683.0,85675.0,8e-05]
[1743604409514,0.72340001,85683.0,85676.0,0.2363]
[1743604409715,0.72340001,85683.0,85675.0,8e-05]
[1743604409933,0.85702515,85683.0,85675.0,8e-05]
[1743604410117,0.85702515,85683.0,85676.0,0.115]
[1743604410324,0.85702515,85683.0,85677.0,0.1116]
[1743604411815,0.72340001,85683.0,85677.0,0.1116]
[1743604412013,0.72340001,85683.0,85680.0,0.2327]
[1743604412219,0.72340001,85683.0,85680.0,0.2427]
[1743604412522,0.232,85682.0,85680.0,0.2427]
[1743604412721,0.23384,85682.0,85680.0,0.2427]
[1743604412925,0.23384,85682.0,85680.0,0.1216]
[1743604413118,0.23384,85682.0,85680.0,0.01]
[1743604413925,0.23384,85682.0,85681.0,0.2244]
[1743604414315,0.23384,85682.0,85675.0,8e-05]
[1743604414517,0.23384,85682.0,85679.0,0.0122]
[1743604414725,0.11634,85682.0,85679.0,0.0122]
[1743604414920,0.22824,85682.0,85680.0,0.2244]
[1743604415113,0.1269008,85681.0,85679.0,0.0022]
[1743604415313,0.17870081,85681.0,85679.0,0.0022]
[1743604415526,0.2227,85680.0,85679.0,0.0022]
[1743604415722,0.11264,85680.0,85679.0,0.0022]
[1743604416425,0.23995448,85680.0,85679.0,0.0022]
[1743604416816,0.35105448,85680.0,85679.0,0.0022]
[1743604418143,0.76935448,85680.0,85679.0,0.0022]
[1743604418430,0.76935448,85680.0,85668.0,8e-05]
[1743604418431,0.9823212,85680.0,85668.0,8e-05]
[1743604418633,0.7216,85669.0,85668.0,8e-05]
[1743604418820,0.86604001,85669.0,85668.0,8e-05]
[1743604419129,0.99171112,85669.0,85668.0,8e-05]
[1743604419316,0.89907112,85669.0,85668.0,8e-05]
[1743604419520,0.99171112,85669.0,85668.0,8e-05]
[1743604420933,0.89907112,85669.0,85668.0,8e-05]
[1743604421425,1.11797112,85669.0,85668.0,8e-05]
[1743604423620,1.22827112,85669.0,85668.0,8e-05]
[1743604424926,1.64657112,85669.0,85668.0,8e-05]
[1743604425223,1.79657112,85669.0,85615.0,0.45355327]
[1743604425423,0.3608,85631.0,85624.0,0.3343]
[1743604425642,0.36268001,85631.0,85624.0,0.4543]
[1743604426135,0.12738174,85630.0,85624.0,0.4043]
[1743604426336,0.35692174,85630.0,85624.0,0.4043]
[1743604426535,0.36692174,85630.0,85624.0,0.4043]
[1743604426728,0.13922174,85630.0,85624.0,0.4043]
[1743604427032,0.00184,85630.0,85624.0,0.4043]
[1743604427728,0.00017518,85636.0,85624.0,0.6043]
[1743604428030,0.00017518,85636.0,85631.0,0.3608]
[1743604428230,0.00132,85636.0,85632.0,0.2315]
[1743604428431,0.00132,85636.0,85632.0,0.2915]
[1743604429432,0.00017518,85643.0,85632.0,0.29238]
[1743604430030,0.00141519,85643.0,85632.0,0.29362]
[1743604430336,0.00141519,85643.0,85632.0,0.30362]
[1743604434836,0.00141519,85643.0,85632.0,0.38626]
[1743604435226,0.00141519,85643.0,85632.0,0.50626]
[1743604435424,0.10387936,85651.0,85642.0,0.3608]
[1743604435736,0.10387936,85650.0,85643.0,0.1096]
[1743604435929,0.10387936,85650.0,85643.0,0.3068]
[1743604436130,0.10387936,85650.0,85643.0,0.2768]
[1743604436433,0.1147,85649.0,85643.0,0.2768]
[1743604436641,0.11558001,85649.0,85643.0,0.2768]
[1743604437140,0.00088001,85649.0,85643.0,0.2768]
[1743604437337,0.10387936,85650.0,85643.0,0.2768]
[1743604437636,0.10387936,85650.0,85649.0,0.3608]
[1743604437837,0.10387936,85650.0,85649.0,0.04]
[1743604438231,0.10387936,85650.0,85649.0,0.1326]
[1743604438629,0.10387936,85650.0,85649.0,0.04]
[1743604438951,0.00017518,85655.0,85649.0,0.4934]
[1743604439236,0.00017518,85655.0,85650.0,0.2221]
[1743604439430,0.00017518,85655.0,85650.0,0.5221]
[1743604439826,0.00017518,85655.0,85650.0,0.0721]
[1743604440034,0.00017518,85655.0,85650.0,0.1627]
[1743604440233,0.13850581,85662.0,85650.0,0.1627]
[1743604440437,0.17401228,85669.0,85656.0,0.3608]
[1743604440741,0.17401228,85669.0,85668.0,0.3608]
[1743604440742,0.17489229,85669.0,85668.0,0.3608]
[1743604440941,0.17401228,85669.0,85668.0,0.72404]
[1743604441239,0.17401228,85669.0,85668.0,0.84286525]
[1743604441835,0.17401228,85669.0,85668.0,0.85541003]
[1743604442038,0.20791872,85675.0,85668.0,0.85541003]
[1743604442039,0.25197862,85701.0,85668.0,1.40541003]
[1743604442243,0.27671664,85694.0,85688.0,0.3608]
[1743604442442,0.27671664,85694.0,85689.0,0.0926]
[1743604442639,0.3608,85690.0,85689.0,0.02]
[1743604442840,0.37140001,85690.0,85668.0,0.00882525]
[1743604443040,0.3608,85673.0,85670.0,0.2262]
[1743604443235,0.1105,85672.0,85671.0,0.00017507]
[1743604443548,0.00060001,85672.0,85671.0,0.01077507]
[1743604443747,0.00017507,85688.0,85671.0,0.35811507]
[1743604443931,0.1105,85687.0,85671.0,0.35823507]
[1743604444137,0.1113,85687.0,85672.0,0.09256]
[1743604444338,0.1113,85687.0,85677.0,0.3608]
[1743604444339,0.0008,85687.0,85677.0,0.3608]
[1743604444541,0.0008,85687.0,85678.0,0.2248]
[1743604444735,0.0008,85687.0,85678.0,0.82552]
[1743604445139,0.3608,85683.0,85678.0,0.47552]
[1743604445337,0.2267,85682.0,85678.0,0.47552]
[1743604445650,0.35933887,85682.0,85678.0,0.47552]
[1743604445941,0.35933887,85682.0,85671.0,0.00161507]
[1743604445942,0.36933887,85682.0,85671.0,0.00161507]
[1743604446138,0.36933887,85682.0,85673.0,0.00016]
[1743604446445,0.3608,85674.0,85671.0,0.00161507]
[1743604446644,0.2305,85673.0,85671.0,0.00221507]
[1743604446853,0.36401939,85673.0,85671.0,0.00161507]
[1743604447034,0.48791939,85673.0,85664.0,0.00016]
[1743604447233,0.48791939,85673.0,85658.0,0.12521313]
[1743604447436,0.3608,85664.0,85658.0,0.12334]
[1743604447648,0.2205,85663.0,85658.0,0.12334]
[1743604447937,0.3608,85659.0,85658.0,0.12334]
[1743604448134,0.36144,85659.0,85658.0,0.12334]
[1743604448543,0.36144,85659.0,85658.0,0.01064]
[1743604449234,0.36144,85659.0,85652.0,0.00017507]
[1743604449438,0.3608,85656.0,85652.0,0.01951457]
[1743604449638,0.3608,85656.0,85653.0,0.1079]
[1743604449639,0.36144,85656.0,85653.0,0.1079]
[1743604449949,0.36144,85656.0,85653.0,0.2343]
[1743604450250,0.00064,85656.0,85653.0,0.0106]
[1743604450549,0.00064,85656.0,85653.0,0.01]
[1743604450550,0.109,85655.0,85653.0,0.01]
[1743604450744,0.10964,85655.0,85653.0,0.01]
[1743604450935,0.00064,85655.0,85654.0,0.2259]
[1743604451140,0.00064,85655.0,85654.0,0.46622]
[1743604451536,0.3608,85665.0,85654.0,0.46622]
[1743604451740,0.36148,85665.0,85654.0,0.45622]
[1743604451941,0.3608,85655.0,85654.0,0.23712]
[1743604452241,0.36144,85655.0,85654.0,0.02072]
[1743604452447,0.36144,85655.0,85654.0,0.00072]
[1743604452747,0.36144,85655.0,85652.0,0.00017507]
[1743604452748,0.50529191,85655.0,85652.0,0.00017507]
[1743604452945,0.50529191,85655.0,85637.0,0.2159]
[1743604452946,0.2181,85654.0,85643.0,8e-05]
[1743604453139,0.3608,85645.0,85643.0,0.01]
[1743604453450,0.1096,85644.0,85643.0,0.01]
[1743604453649,0.11024,85644.0,85643.0,0.0106]
[1743604453845,0.11024,85644.0,85643.0,0.01]
[1743604454041,0.11024,85644.0,85643.0,0.02]
[1743604455046,0.21874,85644.0,85643.0,0.01]
[1743604460543,0.21874,85644.0,85639.0,0.0089321]
[1743604460860,0.3608,85640.0,85639.0,0.01]
[1743604461060,0.36144,85640.0,85639.0,0.01]
[1743604462557,0.00064,85640.0,85639.0,0.18880711]
[1743604462751,0.36097507,85650.0,85639.0,0.21940711]
[1743604462956,0.223,85649.0,85639.0,0.21940711]
[1743604463165,0.22372,85649.0,85639.0,0.21940711]
[1743604464172,0.22372,85649.0,85639.0,0.38650011]
[1743604464758,0.22372,85649.0,85639.0,0.22940711]
[1743604464759,0.3608,85642.0,85639.0,0.22940711]
[1743604464956,0.1113,85641.0,85639.0,0.22940711]
[1743604465157,0.22472,85641.0,85639.0,0.22940711]
[1743604465460,0.22472,85641.0,85639.0,0.21940711]
[1743604465668,0.22472,85641.0,85639.0,0.12940711]
[1743604468452,0.22472,85641.0,85640.0,0.1089]
[1743604468659,0.11202,85641.0,85640.0,0.01072]
[1743604469058,0.1113,85641.0,85640.0,0.01]
[1743604469466,0.1113,85641.0,85639.0,0.00880711]
[1743604469663,0.1142,85640.0,85636.0,0.00175145]
[1743604469864,0.1142,85640.0,85636.0,0.01175145]
[1743604470067,0.1156,85639.0,85636.0,0.01175145]
[1743604470683,0.1142,85638.0,85636.0,0.02072025]
[1743604471168,0.1149,85637.0,85636.0,0.02072025]
[1743604472368,0.1149,85637.0,85636.0,0.23902025]
[1743604472968,0.1175,85649.0,85636.0,0.34902025]
[1743604473167,0.2278,85643.0,85636.0,0.34902025]
[1743604473470,0.12604622,85648.0,85639.0,0.3608]
[1743604473667,0.00017507,85650.0,85647.0,0.3608]
[1743604473873,0.00017507,85650.0,85648.0,0.30688]
[1743604474068,0.00017507,85650.0,85648.0,0.9176]
[1743604474371,0.53404529,85670.0,85648.0,0.9176]
[1743604474563,0.2168,85669.0,85648.0,0.9176]
[1743604474764,0.21752,85669.0,85648.0,0.9176]
[1743604475264,0.21752,85669.0,85650.0,0.157093]
[1743604475567,0.21752,85669.0,85650.0,0.957853]
[1743604475568,0.00017507,85668.0,85650.0,0.957853]
[1743604475761,0.00089507,85668.0,85658.0,0.157093]
[1743604475961,0.00089507,85668.0,85659.0,0.3213]
[1743604476160,0.11009507,85668.0,85659.0,0.81202]
[1743604476666,0.00089507,85668.0,85659.0,0.81202]
[1743604477773,0.22169507,85668.0,85659.0,0.81202]
[1743604478277,0.11069507,85668.0,85659.0,0.81202]
[1743604479072,0.2079625,85690.0,85664.0,0.3608]
[1743604479369,0.17404529,85685.0,85682.0,0.3608]
[1743604479667,0.17324529,85688.0,85683.0,0.42694]
[1743604479863,0.2079625,85694.0,85683.0,1.2079]
[1743604480065,0.2079625,85694.0,85692.0,0.3608]
[1743604480260,0.20920251,85694.0,85693.0,0.2271]
[1743604480573,0.2079625,85694.0,85693.0,0.90842]
[1743604482775,0.00017507,85697.0,85693.0,0.91732602]
[1743604483172,0.12617216,85696.0,85693.0,0.04022602]
[1743604483477,0.1053,85695.0,85693.0,0.03890602]
[1743604483774,0.21280001,85695.0,85693.0,0.03890602]
[1743604483972,0.1298162,85694.0,85680.0,0.27797494]
[1743604484178,0.3608,85686.0,85680.0,0.30921494]
[1743604484368,0.2122,85685.0,85680.0,0.30921494]
[1743604484569,0.21344001,85685.0,85680.0,0.31787573]
[1743604485176,0.21344001,85685.0,85680.0,0.30787573]
[1743604485475,0.21344001,85685.0,85680.0,0.29921494]
[1743604485476,0.12798976,85684.0,85680.0,0.29921494]
[1743604485686,0.24068976,85684.0,85680.0,0.27921494]
[1743604485872,0.2206,85683.0,85680.0,0.27921494]
[1743604486384,0.12861142,85682.0,85680.0,0.00141507]
[1743604486582,0.2206,85683.0,85680.0,0.00017507]
[1743604486773,0.2242,85681.0,85680.0,0.00017507]
[1743604487275,0.35110819,85681.0,85680.0,0.00017507]
[1743604487682,0.35110819,85681.0,85670.0,0.01246829]
[1743604487683,0.35110819,85681.0,85670.0,0.01244573]
[1743604487873,0.3608,85677.0,85670.0,0.02]
[1743604488180,0.2242,85676.0,85671.0,0.2245]
[1743604488382,0.2242,85676.0,85671.0,0.24578]
[1743604488775,0.2242,85676.0,85671.0,0.34578]
[1743604489276,0.13074991,85675.0,85671.0,0.01128]
[1743604489477,0.13074991,85675.0,85665.0,0.00017507]
[1743604489478,0.14074991,85675.0,85665.0,0.00017507]
[1743604489676,0.3608,85667.0,85665.0,0.00017507]
[1743604489994,0.2309,85666.0,85665.0,0.00017507]
[1743604490180,0.3619149,85666.0,85665.0,0.00017507]
[1743604491586,0.3619149,85666.0,85651.0,0.4666]
[1743604491592,0.3719149,85666.0,85640.0,0.34604334]
[1743604491882,0.3608,85652.0,85649.0,0.22973674]
[1743604492081,0.2283,85651.0,85649.0,0.22973674]
[1743604492281,0.22954001,85651.0,85649.0,0.22973674]
[1743604493382,0.22954001,85651.0,85649.0,0.02128]
[1743604493571,0.22954001,85651.0,85649.0,0.02]
[1743604493980,0.22954001,85651.0,85649.0,0.02124]
[1743604496981,0.22954001,85651.0,85650.0,0.2206]
[1743604497187,0.22954001,85651.0,85650.0,0.23188]
[1743604498386,0.00017507,85659.0,85650.0,0.43188]
[1743604498585,0.1118,85657.0,85650.0,0.79268]
[1743604499177,0.1118,85657.0,85650.0,0.04128]
[1743604499477,0.1071,85656.0,85650.0,0.04128]
[1743604499881,0.1118,85655.0,85650.0,0.04128]
[1743604500286,0.1118,85655.0,85651.0,0.2217]
[1743604500487,0.1071,85654.0,85651.0,0.2433]
[1743604500698,0.1071,85654.0,85651.0,0.2533]
[1743604500986,0.00017507,85659.0,85651.0,0.7241]
[1743604501187,0.00017507,85659.0,85658.0,0.3608]
[1743604501377,0.3608,85685.0,85658.0,1.26472]
[1743604501576,0.1116,85684.0,85676.0,0.3608]
[1743604501775,0.1116,85684.0,85683.0,0.3608]
[1743604501978,0.1116,85684.0,85683.0,0.6224]
[1743604502283,0.1116,85684.0,85670.0,0.41]
[1743604502284,0.23963599,85684.0,85670.0,0.01]
[1743604502486,0.3608,85672.0,85670.0,0.02112]
[1743604502685,0.3608,85672.0,85655.0,0.3608]
[1743604502686,0.5868,85671.0,85654.0,0.09232]
[1743604502893,0.3608,85658.0,85654.0,0.01]
[1743604503193,0.226,85657.0,85654.0,0.01]
[1743604503579,0.3396,85657.0,85654.0,0.01]
[1743604503781,0.13351789,85656.0,85654.0,0.01]
[1743604504282,0.225,85655.0,85647.0,0.00017507]
[1743604504488,0.3608,85648.0,85647.0,0.00017507]
[1743604504989,0.48426823,85648.0,85647.0,0.00017507]
[1743604505188,0.48426823,85648.0,85639.0,0.34604334]
[1743604505491,0.3608,85641.0,85639.0,0.34684334]
[1743604505687,0.2141,85640.0,85639.0,0.34684334]
[1743604505891,0.34822069,85640.0,85639.0,0.34684334]
[1743604506094,0.34822069,85640.0,85639.0,0.35550429]
[1743604506393,0.00060001,85640.0,85639.0,0.37550429]
[1743604506891,0.11120001,85640.0,85639.0,0.37550429]
[1743604507089,0.2141,85640.0,85639.0,0.37550429]
[1743604507289,0.00060001,85640.0,85639.0,0.49550429]
[1743604507485,0.114,85649.0,85639.0,0.49550429]
[1743604507684,0.1148,85649.0,85639.0,0.67230092]
[1743604507891,0.0008,85649.0,85639.0,0.49550429]
[1743604508197,0.1148,85649.0,85639.0,0.49550429]
[1743604508390,0.114,85649.0,85639.0,0.49550429]
[1743604508689,0.114,85649.0,85640.0,0.09228]
[1743604508880,0.114,85649.0,85640.0,0.13308]
[1743604508881,0.112,85648.0,85640.0,0.13308]
[1743604509082,0.11288,85648.0,85640.0,0.13308]
[1743604509393,0.114,85647.0,85640.0,0.13308]
[1743604509596,0.11484,85647.0,85640.0,0.13308]
[1743604509892,0.112,85646.0,85640.0,0.13308]
[1743604510093,0.11288,85646.0,85640.0,0.13308]
[1743604510310,0.1115,85645.0,85640.0,0.0408]
[1743604510485,0.1123,85645.0,85640.0,0.0408]
[1743604510801,0.1123,85645.0,85641.0,0.2157]
[1743604510996,0.1115,85645.0,85641.0,0.4365]
[1743604511189,0.3608,85642.0,85641.0,0.0008]
[1743604511397,0.36140001,85642.0,85641.0,0.01]
[1743604511693,0.00060001,85642.0,85641.0,0.01]
[1743604512189,0.00060001,85642.0,85641.0,0.0108]
[1743604512796,0.00060001,85642.0,85641.0,0.1233]